[Event "*** Titled Tuesday 3|2 Blitz"]
[Site "Chess.com"]
[Date "2016.03.01"]
[Round "1"]
[White "ftorodent"]
[Black "LuckyTiger"]
[Result "0-1"]
[WhiteElo "2310"]
[BlackElo "2568"]
[TimeControl "180+2"]
[EndTime "11:07:52 PST"]
[Termination "LuckyTiger won on time"]

1. d4 {[%clk 0:03:01.2]} 1... Nf6 {[%clk 0:03:00.6]} 2. c4 {[%clk 0:03:01.6]}
2... c5 {[%clk 0:03:02.2]} 3. d5 {[%clk 0:03:02.1]} 3... b5 {[%clk 0:03:03]} 4.
cxb5 {[%clk 0:03:02.8]} 4... a6 {[%clk 0:03:04.5]} 5. bxa6 {[%clk 0:03:03.9]}
5... g6 {[%clk 0:03:05.6]} 6. Nc3 {[%clk 0:03:04.9]} 6... Bxa6 {[%clk
0:03:07.2]} 7. e4 {[%clk 0:03:05.9]} 7... Qa5 {[%clk 0:03:08.8]} 8. Bxa6 {[%clk
0:02:57.1]} 8... Nxa6 {[%clk 0:03:10.4]} 9. Bd2 {[%clk 0:02:47.2]} 9... d6
{[%clk 0:03:09.2]} 10. Nf3 {[%clk 0:02:36.8]} 10... Bg7 {[%clk 0:03:09.6]} 11.
O-O {[%clk 0:02:36.9]} 11... O-O {[%clk 0:03:09.4]} 12. a4 {[%clk 0:02:20.2]}
12... Rfb8 {[%clk 0:03:08.8]} 13. e5 {[%clk 0:02:09.3]} 13... Ne8 {[%clk
0:03:02.8]} 14. Nb5 {[%clk 0:02:05.3]} 14... Qd8 {[%clk 0:03:03.6]} 15. Bc3
{[%clk 0:02:04.8]} 15... Nac7 {[%clk 0:02:59.6]} 16. Nxc7 {[%clk 0:01:47.2]}
16... Nxc7 {[%clk 0:03:00.3]} 17. exd6 {[%clk 0:01:35.9]} 17... exd6 {[%clk
0:03:02.2]} 18. Qd3 {[%clk 0:01:36.9]} 18... Qd7 {[%clk 0:02:46.5]} 19. a5
{[%clk 0:01:37.1]} 19... Qb5 {[%clk 0:02:42.2]} 20. Qxb5 {[%clk 0:01:19.5]}
20... Rxb5 {[%clk 0:02:44.1]} 21. Bxg7 {[%clk 0:01:20.4]} 21... Kxg7 {[%clk
0:02:46]} 22. Nd2 {[%clk 0:01:21.7]} 22... Rbxa5 {[%clk 0:02:22.7]} 23. Rxa5
{[%clk 0:01:21.5]} 23... Rxa5 {[%clk 0:02:24.6]} 24. Nc4 {[%clk 0:01:22.9]}
24... Rb5 {[%clk 0:02:15.1]} 25. Rd1 {[%clk 0:01:05.5]} 25... Ne8 {[%clk
0:02:15.6]} 26. g3 {[%clk 0:01:02.4]} 26... Kf8 {[%clk 0:02:13.4]} 27. Kg2
{[%clk 0:01:01.3]} 27... Rb4 {[%clk 0:02:09.3]} 28. Rc1 {[%clk 0:00:58.6]} 28...
Ke7 {[%clk 0:02:10.4]} 29. Re1+ {[%clk 0:00:48.4]} 29... Kd7 {[%clk 0:02:10.4]}
30. Na5 {[%clk 0:00:49.3]} 30... Rd4 {[%clk 0:01:53.7]} 31. Nc6 {[%clk
0:00:43.4]} 31... Rxd5 {[%clk 0:01:54.6]} 32. Nb8+ {[%clk 0:00:36.5]} 32... Kd8
{[%clk 0:01:55.6]} 33. Nc6+ {[%clk 0:00:37.5]} 33... Kc7 {[%clk 0:01:55.2]} 34.
Na5 {[%clk 0:00:17.1]} 34... Re5 {[%clk 0:01:39.1]} 35. Ra1 {[%clk 0:00:16.4]}
35... Re4 {[%clk 0:01:35.5]} 36. b3 {[%clk 0:00:14.7]} 36... d5 {[%clk
0:01:32.4]} 37. Kf3 {[%clk 0:00:12.9]} 37... Nf6 {[%clk 0:01:31.2]} 38. Rd1
{[%clk 0:00:11.4]} 38... Rb4 {[%clk 0:01:28.7]} 39. Ra1 {[%clk 0:00:05]} 39...
Kb6 {[%clk 0:01:23]} 40. Ra2 {[%clk 0:00:05.3]} 40... Rb5 {[%clk 0:01:23.7]} 41.
b4 {[%clk 0:00:05.7]} 41... Rxb4 {[%clk 0:01:24.5]} 0-1

[Event "*** Titled Tuesday 3|2 Blitz"]
[Site "Chess.com"]
[Date "2016.03.01"]
[Round "1"]
[White "kikydu96"]
[Black "Silent_Terror"]
[Result "0-1"]
[WhiteElo "2299"]
[BlackElo "2526"]
[TimeControl "180+2"]
[EndTime "11:07:58 PST"]
[Termination "Silent_Terror won by resignation"]

1. e4 {[%clk 0:02:58.5]} 1... e5 {[%clk 0:03:00.6]} 2. Nf3 {[%clk 0:02:56.7]}
2... d6 {[%clk 0:03:01.5]} 3. Bc4 {[%clk 0:02:54.1]} 3... Nd7 {[%clk 0:02:59.7]}
4. d3 {[%clk 0:02:42.9]} 4... Be7 {[%clk 0:02:59.9]} 5. O-O {[%clk 0:02:38.7]}
5... c6 {[%clk 0:02:54]} 6. c3 {[%clk 0:02:38.9]} 6... Ngf6 {[%clk 0:02:53]} 7.
Bb3 {[%clk 0:02:38.4]} 7... O-O {[%clk 0:02:53.1]} 8. h3 {[%clk 0:02:39.7]} 8...
h6 {[%clk 0:02:52.7]} 9. Nbd2 {[%clk 0:02:40.4]} 9... Re8 {[%clk 0:02:53.4]} 10.
Re1 {[%clk 0:02:41.6]} 10... Nf8 {[%clk 0:02:54.6]} 11. Nf1 {[%clk 0:02:42.8]}
11... Qc7 {[%clk 0:02:55.6]} 12. Ng3 {[%clk 0:02:43]} 12... Be6 {[%clk
0:02:48.9]} 13. Bc2 {[%clk 0:02:41.4]} 13... Rad8 {[%clk 0:02:47.2]} 14. Be3
{[%clk 0:02:41.9]} 14... Bc8 {[%clk 0:02:44]} 15. Qd2 {[%clk 0:02:40.6]} 15...
Ng6 {[%clk 0:02:44.2]} 16. Bb3 {[%clk 0:02:39.2]} 16... Bf8 {[%clk 0:02:43.1]}
17. Nf5 {[%clk 0:02:36.6]} 17... d5 {[%clk 0:02:39.1]} 18. Qc2 {[%clk
0:02:26.7]} 18... Be6 {[%clk 0:02:17.4]} 19. Nh2 {[%clk 0:02:16.5]} 19... Ne7
{[%clk 0:01:58.2]} 20. g4 {[%clk 0:01:59.1]} 20... Ng6 {[%clk 0:01:50.9]} 21. g5
{[%clk 0:01:51.2]} 21... Nh5 {[%clk 0:01:22.8]} 22. gxh6 {[%clk 0:01:48.2]}
22... gxh6 {[%clk 0:01:22.4]} 23. Nxh6+ {[%clk 0:01:45.3]} 23... Bxh6 {[%clk
0:01:13.4]} 24. Bxh6 {[%clk 0:01:45.7]} 24... Kh7 {[%clk 0:01:14.9]} 25. Bg5
{[%clk 0:01:27.4]} 25... f6 {[%clk 0:01:15.4]} 26. Qd1 {[%clk 0:01:15.4]} 26...
Ngf4 {[%clk 0:01:09]} 27. Bxf4 {[%clk 0:01:12.9]} 27... Nxf4 {[%clk 0:01:09.8]}
28. Qf3 {[%clk 0:01:10.7]} 28... Rg8+ {[%clk 0:01:06.4]} 29. Kh1 {[%clk
0:01:08.4]} 29... Bxh3 {[%clk 0:01:05.3]} 30. Rg1 {[%clk 0:01:09.4]} 30... Bg2+
{[%clk 0:00:59.8]} 31. Rxg2 {[%clk 0:01:09.8]} 31... Rxg2 {[%clk 0:01:01.5]} 32.
exd5 {[%clk 0:01:02.4]} 32... cxd5 {[%clk 0:01:02.6]} 33. Rg1 {[%clk 0:00:50.7]}
33... Rdg8 {[%clk 0:01:01.5]} 34. Rxg2 {[%clk 0:00:50.4]} 34... Rxg2 {[%clk
0:00:59.5]} 35. Bxd5 {[%clk 0:00:51.4]} 35... Qg7 {[%clk 0:00:57]} 36. Be4+
{[%clk 0:00:43.3]} 36... Kh8 {[%clk 0:00:53.1]} 37. Qd1 {[%clk 0:00:38.8]} 37...
Rxf2 {[%clk 0:00:44.7]} 38. Qg1 {[%clk 0:00:28.2]} 38... Qxg1+ {[%clk
0:00:42.9]} 39. Kxg1 {[%clk 0:00:30.1]} 39... Rxb2 {[%clk 0:00:43.8]} 40. Bxb7
{[%clk 0:00:28]} 40... Rxb7 {[%clk 0:00:44.2]} 0-1

[Event "*** Titled Tuesday 3|2 Blitz"]
[Site "Chess.com"]
[Date "2016.03.01"]
[Round "1"]
[White "GianmarcoVaR"]
[Black "Alexander_Donchenko"]
[Result "0-1"]
[WhiteElo "2344"]
[BlackElo "2605"]
[TimeControl "180+2"]
[EndTime "11:08:10 PST"]
[Termination "Alexander_Donchenko won by resignation"]

1. Nf3 {[%clk 0:02:58.5]} 1... c5 {[%clk 0:03:00]} 2. c4 {[%clk 0:02:59.2]} 2...
Nc6 {[%clk 0:03:00.5]} 3. d4 {[%clk 0:02:59.9]} 3... cxd4 {[%clk 0:03:01.4]} 4.
Nxd4 {[%clk 0:03:01.4]} 4... Nf6 {[%clk 0:03:02.8]} 5. g3 {[%clk 0:02:58.8]}
5... e5 {[%clk 0:03:03.3]} 6. Nb3 {[%clk 0:02:47.4]} 6... Bb4+ {[%clk
0:03:00.9]} 7. Bd2 {[%clk 0:02:46.7]} 7... d5 {[%clk 0:02:49.2]} 8. Bxb4 {[%clk
0:02:36.4]} 8... Nxb4 {[%clk 0:02:49.9]} 9. cxd5 {[%clk 0:02:34.4]} 9... Bf5
{[%clk 0:02:42.2]} 10. Na3 {[%clk 0:02:32.9]} 10... Be4 {[%clk 0:02:40.3]} 11.
f3 {[%clk 0:02:33.6]} 11... Bxd5 {[%clk 0:02:38.3]} 12. e4 {[%clk 0:02:29.6]}
12... Be6 {[%clk 0:02:16.4]} 13. Bb5+ {[%clk 0:01:45.6]} 13... Ke7 {[%clk
0:02:16.9]} 14. O-O {[%clk 0:01:00.6]} 14... Qxd1 {[%clk 0:02:06.2]} 15. Rfxd1
{[%clk 0:01:00.8]} 15... Nxa2 {[%clk 0:01:46.4]} 16. Nc5 {[%clk 0:00:59.1]}
16... Nb4 {[%clk 0:01:47.5]} 17. Nxb7 {[%clk 0:00:57.4]} 17... Rhb8 {[%clk
0:01:25.2]} 18. Na5 {[%clk 0:00:57.5]} 18... Rb6 {[%clk 0:01:14.6]} 19. Rac1
{[%clk 0:00:56.8]} 19... Ne8 {[%clk 0:01:09.4]} 20. Bxe8 {[%clk 0:00:23.6]}
20... Kxe8 {[%clk 0:01:10]} 21. N5c4 {[%clk 0:00:25.1]} 21... Bxc4 {[%clk
0:01:00.1]} 22. Nxc4 {[%clk 0:00:26.1]} 22... Re6 {[%clk 0:01:01.2]} 23. Nd6+
{[%clk 0:00:26.7]} 23... Kf8 {[%clk 0:01:00.3]} 24. Nf5 {[%clk 0:00:15]} 24...
g6 {[%clk 0:00:57.5]} 25. Ne3 {[%clk 0:00:16.2]} 25... Rc6 {[%clk 0:00:52.3]}
26. Rxc6 {[%clk 0:00:14.2]} 26... Nxc6 {[%clk 0:00:54.2]} 27. Kf2 {[%clk
0:00:12.5]} 27... Rb8 {[%clk 0:00:54.7]} 28. Rd2 {[%clk 0:00:12.7]} 28... Rb7
{[%clk 0:00:47.8]} 29. Nc4 {[%clk 0:00:13]} 29... Ke7 {[%clk 0:00:46.1]} 30. Rd5
{[%clk 0:00:13.7]} 30... f6 {[%clk 0:00:42.9]} 31. Rc5 {[%clk 0:00:14.2]} 31...
Nb4 {[%clk 0:00:33.5]} 32. Ke3 {[%clk 0:00:12.9]} 32... Nc2+ {[%clk 0:00:34.5]}
33. Kd2 {[%clk 0:00:14]} 33... Nd4 {[%clk 0:00:35.5]} 34. f4 {[%clk 0:00:13.5]}
34... Nb3+ {[%clk 0:00:36.2]} 35. Kc3 {[%clk 0:00:09.6]} 35... Nxc5 {[%clk
0:00:38.1]} 36. Na5 {[%clk 0:00:11.2]} 36... Rc7 {[%clk 0:00:37.9]} 37. fxe5
{[%clk 0:00:08.9]} 37... fxe5 {[%clk 0:00:38.6]} 0-1

[Event "*** Titled Tuesday 3|2 Blitz"]
[Site "Chess.com"]
[Date "2016.03.01"]
[Round "1"]
[White "Bentery"]
[Black "BahadirOzen"]
[Result "0-1"]
[WhiteElo "2310"]
[BlackElo "2556"]
[TimeControl "180+2"]
[EndTime "11:08:42 PST"]
[Termination "BahadirOzen won by resignation"]

1. Nf3 {[%clk 0:03:01.9]} 1... d6 {[%clk 0:02:55.1]} 2. d4 {[%clk 0:03:02.6]}
2... g6 {[%clk 0:02:55.8]} 3. e4 {[%clk 0:03:03.4]} 3... Bg7 {[%clk 0:02:57.3]}
4. c3 {[%clk 0:03:05]} 4... Nf6 {[%clk 0:02:58.2]} 5. Bd3 {[%clk 0:03:06.1]}
5... O-O {[%clk 0:02:59.8]} 6. O-O {[%clk 0:03:07.2]} 6... Nc6 {[%clk
0:03:00.8]} 7. d5 {[%clk 0:03:07.1]} 7... Nb8 {[%clk 0:02:56.2]} 8. c4 {[%clk
0:03:07.4]} 8... c6 {[%clk 0:02:54.6]} 9. Nc3 {[%clk 0:03:08.2]} 9... Bg4 {[%clk
0:02:50.2]} 10. h3 {[%clk 0:03:02.4]} 10... Bxf3 {[%clk 0:02:51.1]} 11. Qxf3
{[%clk 0:03:04.3]} 11... Nbd7 {[%clk 0:02:53]} 12. Qd1 {[%clk 0:02:58.1]} 12...
cxd5 {[%clk 0:02:51.5]} 13. cxd5 {[%clk 0:02:57.3]} 13... Rc8 {[%clk 0:02:45.2]}
14. Re1 {[%clk 0:02:57.6]} 14... a6 {[%clk 0:02:38.7]} 15. Be3 {[%clk
0:02:47.9]} 15... Ne5 {[%clk 0:02:35]} 16. Bf1 {[%clk 0:02:43.6]} 16... Nfd7
{[%clk 0:02:35.4]} 17. Bd4 {[%clk 0:02:35.1]} 17... b5 {[%clk 0:02:05.2]} 18. a4
{[%clk 0:02:03.7]} 18... bxa4 {[%clk 0:01:44.6]} 19. f4 {[%clk 0:01:53.3]} 19...
Rb8 {[%clk 0:00:44.6]} 20. Nxa4 {[%clk 0:01:35]} 20... Rb4 {[%clk 0:00:41.3]}
21. fxe5 {[%clk 0:01:34.5]} 21... Nxe5 {[%clk 0:00:42.4]} 22. Bc3 {[%clk
0:01:33.1]} 22... Rb8 {[%clk 0:00:40.2]} 23. Kh1 {[%clk 0:01:30.9]} 23... f5
{[%clk 0:00:40.6]} 24. Qd2 {[%clk 0:01:05.2]} 24... f4 {[%clk 0:00:40.6]} 25.
Bxa6 {[%clk 0:01:00.1]} 25... f3 {[%clk 0:00:41]} 26. Bf1 {[%clk 0:00:49.2]}
26... Qd7 {[%clk 0:00:29.7]} 27. Bd4 {[%clk 0:00:29.2]} 27... fxg2+ {[%clk
0:00:11.3]} 28. Qxg2 {[%clk 0:00:30.2]} 28... Nf3 {[%clk 0:00:10.4]} 29. Bxg7
{[%clk 0:00:30.8]} 29... Nxe1 {[%clk 0:00:11.9]} 30. Rxe1 {[%clk 0:00:25]} 30...
Kxg7 {[%clk 0:00:13.4]} 31. Nc3 {[%clk 0:00:25.7]} 31... Qb7 {[%clk 0:00:10.2]}
32. Re2 {[%clk 0:00:23.3]} 32... Qb6 {[%clk 0:00:11.3]} 33. e5 {[%clk 0:00:21]}
33... dxe5 {[%clk 0:00:10]} 34. Ne4 {[%clk 0:00:22.1]} 34... h6 {[%clk
0:00:08.7]} 35. h4 {[%clk 0:00:20.5]} 35... Rf5 {[%clk 0:00:07.4]} 36. Ng3
{[%clk 0:00:21.4]} 36... Rf7 {[%clk 0:00:07.1]} 37. Rxe5 {[%clk 0:00:21.9]}
37... Rbf8 {[%clk 0:00:06.8]} 38. Bd3 {[%clk 0:00:21.4]} 38... Kh8 {[%clk
0:00:05.7]} 39. Re6 {[%clk 0:00:21.7]} 39... Qd4 {[%clk 0:00:05.5]} 40. Bxg6
{[%clk 0:00:21.6]} 40... Rf2 {[%clk 0:00:06.5]} 41. Qg1 {[%clk 0:00:18.7]} 41...
Qxh4+ {[%clk 0:00:07.6]} 0-1

[Event "*** Titled Tuesday 3|2 Blitz"]
[Site "Chess.com"]
[Date "2016.03.01"]
[Round "1"]
[White "JustKid"]
[Black "Aygehovit1992"]
[Result "1/2-1/2"]
[WhiteElo "2099"]
[BlackElo "2422"]
[TimeControl "180+2"]
[EndTime "11:08:44 PST"]
[Termination "Game drawn by repetition"]

1. d4 {[%clk 0:02:59.5]} 1... Nf6 {[%clk 0:02:58.3]} 2. c4 {[%clk 0:02:59.8]}
2... g6 {[%clk 0:02:59.4]} 3. Nf3 {[%clk 0:03:00.1]} 3... Bg7 {[%clk 0:03:00.6]}
4. Nc3 {[%clk 0:03:01.8]} 4... O-O {[%clk 0:03:01.7]} 5. e4 {[%clk 0:03:03.4]}
5... d6 {[%clk 0:03:03]} 6. h3 {[%clk 0:03:04.9]} 6... e5 {[%clk 0:03:04.1]} 7.
d5 {[%clk 0:03:05.9]} 7... Nh5 {[%clk 0:03:05]} 8. g3 {[%clk 0:03:05.5]} 8...
Na6 {[%clk 0:03:04.7]} 9. Be2 {[%clk 0:02:59.6]} 9... f5 {[%clk 0:03:00]} 10.
exf5 {[%clk 0:02:54.8]} 10... gxf5 {[%clk 0:03:00.6]} 11. Bg5 {[%clk 0:02:56.3]}
11... Qe8 {[%clk 0:03:01.4]} 12. a3 {[%clk 0:02:43.4]} 12... Nc5 {[%clk
0:02:58.9]} 13. Nd2 {[%clk 0:02:27.9]} 13... Nf6 {[%clk 0:02:56.5]} 14. Qc2
{[%clk 0:02:28.3]} 14... a5 {[%clk 0:02:55.4]} 15. O-O {[%clk 0:02:08.5]} 15...
f4 {[%clk 0:02:53.2]} 16. Bxf6 {[%clk 0:01:59.1]} 16... Rxf6 {[%clk 0:02:51.4]}
17. g4 {[%clk 0:01:55.9]} 17... Rh6 {[%clk 0:02:49.9]} 18. Kg2 {[%clk
0:01:49.4]} 18... c6 {[%clk 0:02:10]} 19. Bf3 {[%clk 0:01:44.8]} 19... Bd7
{[%clk 0:01:52.9]} 20. b4 {[%clk 0:01:44.6]} 20... axb4 {[%clk 0:01:52]} 21.
axb4 {[%clk 0:01:46.5]} 21... Rxa1 {[%clk 0:01:52.4]} 22. Rxa1 {[%clk
0:01:46.6]} 22... Na6 {[%clk 0:01:54]} 23. dxc6 {[%clk 0:01:34]} 23... Bxc6
{[%clk 0:01:53.6]} 24. Nd5 {[%clk 0:01:31.7]} 24... e4 {[%clk 0:01:50]} 25. Bxe4
{[%clk 0:00:40.4]} 25... Bxa1 {[%clk 0:01:46.4]} 26. b5 {[%clk 0:00:41.8]} 26...
Nc5 {[%clk 0:01:32.7]} 27. bxc6 {[%clk 0:00:42]} 27... bxc6 {[%clk 0:01:33.8]}
28. Nxf4 {[%clk 0:00:36]} 28... Be5 {[%clk 0:01:24.3]} 29. Nh5 {[%clk
0:00:35.4]} 29... Ne6 {[%clk 0:01:09.7]} 30. Nf3 {[%clk 0:00:30.4]} 30... Rxh5
{[%clk 0:00:57.9]} 31. gxh5 {[%clk 0:00:27.8]} 31... Qxh5 {[%clk 0:00:59.5]} 32.
Ng1 {[%clk 0:00:17.6]} 32... Nf4+ {[%clk 0:00:57.5]} 33. Kf1 {[%clk 0:00:18.7]}
33... Nxh3 {[%clk 0:00:39.3]} 34. Nxh3 {[%clk 0:00:19.6]} 34... Qxh3+ {[%clk
0:00:39.6]} 35. Bg2 {[%clk 0:00:21.5]} 35... Qd7 {[%clk 0:00:33.6]} 36. Qe4
{[%clk 0:00:20.9]} 36... c5 {[%clk 0:00:34.9]} 37. Qd5+ {[%clk 0:00:21.7]} 37...
Kf8 {[%clk 0:00:36.1]} 38. Qa8+ {[%clk 0:00:22.9]} 38... Kg7 {[%clk 0:00:37]}
39. Qe4 {[%clk 0:00:24.8]} 39... Qe6 {[%clk 0:00:35.5]} 40. Qd5 {[%clk
0:00:25.1]} 40... Qf6 {[%clk 0:00:36.5]} 41. Qf3 {[%clk 0:00:25.7]} 41... Qg5
{[%clk 0:00:36]} 42. Qe3 {[%clk 0:00:25.6]} 42... Qf5 {[%clk 0:00:33]} 43. Qe4
{[%clk 0:00:25.7]} 43... Qg5 {[%clk 0:00:30]} 44. Qe3 {[%clk 0:00:26.6]} 44...
Bf4 {[%clk 0:00:24.3]} 45. Qc3+ {[%clk 0:00:25.6]} 45... Be5 {[%clk 0:00:22.7]}
46. Qe3 {[%clk 0:00:26.2]} 1/2-1/2

[Event "*** Titled Tuesday 3|2 Blitz"]
[Site "Chess.com"]
[Date "2016.03.01"]
[Round "1"]
[White "biostatistician"]
[Black "MinhGTrAn"]
[Result "0-1"]
[WhiteElo "2349"]
[BlackElo "2654"]
[TimeControl "180+2"]
[EndTime "11:08:49 PST"]
[Termination "MinhGTrAn won by resignation"]

1. d4 {[%clk 0:02:59.6]} 1... Nf6 {[%clk 0:03:01.2]} 2. Nf3 {[%clk 0:03:00.8]}
2... e6 {[%clk 0:03:02.7]} 3. c4 {[%clk 0:03:02]} 3... b6 {[%clk 0:03:04.6]} 4.
Nc3 {[%clk 0:03:03.2]} 4... Bb4 {[%clk 0:03:05.4]} 5. Qc2 {[%clk 0:03:04.6]}
5... Bb7 {[%clk 0:03:06.5]} 6. a3 {[%clk 0:03:06.5]} 6... Bxc3+ {[%clk
0:03:07.6]} 7. Qxc3 {[%clk 0:03:08.4]} 7... O-O {[%clk 0:03:06.3]} 8. g3 {[%clk
0:03:07.7]} 8... d6 {[%clk 0:03:06.3]} 9. Bg2 {[%clk 0:03:08.1]} 9... Nbd7
{[%clk 0:03:07.9]} 10. O-O {[%clk 0:03:09.6]} 10... c5 {[%clk 0:03:09.5]} 11.
Rd1 {[%clk 0:03:07.4]} 11... Qe7 {[%clk 0:03:08.7]} 12. dxc5 {[%clk 0:03:01.3]}
12... Nxc5 {[%clk 0:03:10.6]} 13. b4 {[%clk 0:03:00.6]} 13... Nce4 {[%clk
0:03:08.1]} 14. Qd3 {[%clk 0:02:45.8]} 14... Rac8 {[%clk 0:03:02.5]} 15. Bb2
{[%clk 0:02:46.2]} 15... Rfd8 {[%clk 0:02:50.2]} 16. Rac1 {[%clk 0:02:47.1]}
16... h6 {[%clk 0:02:46.8]} 17. Nd2 {[%clk 0:02:37.2]} 17... Nxd2 {[%clk
0:02:39.8]} 18. Rxd2 {[%clk 0:02:39.1]} 18... Bxg2 {[%clk 0:02:40]} 19. Kxg2
{[%clk 0:02:41]} 19... e5 {[%clk 0:02:33.9]} 20. Qf5 {[%clk 0:02:27.5]} 20...
Rc7 {[%clk 0:02:29.9]} 21. Rdc2 {[%clk 0:02:26.1]} 21... Rdc8 {[%clk 0:02:27.9]}
22. f3 {[%clk 0:02:20.4]} 22... Qe6 {[%clk 0:02:08.6]} 23. Qxe6 {[%clk
0:02:17.8]} 23... fxe6 {[%clk 0:02:10.5]} 24. e4 {[%clk 0:02:06.8]} 24... Kf7
{[%clk 0:02:10.8]} 25. Kf2 {[%clk 0:02:03.1]} 25... Ke7 {[%clk 0:02:12.3]} 26.
Ke2 {[%clk 0:02:02.3]} 26... g5 {[%clk 0:02:10.4]} 27. h3 {[%clk 0:02:00.8]}
27... Nh5 {[%clk 0:02:11]} 28. Kf2 {[%clk 0:01:58.3]} 28... Nf6 {[%clk
0:02:08.7]} 29. c5 {[%clk 0:01:50]} 29... bxc5 {[%clk 0:02:01.9]} 30. bxc5
{[%clk 0:01:51.9]} 30... Kf7 {[%clk 0:01:47]} 31. Ke3 {[%clk 0:01:38.3]} 31...
Nd7 {[%clk 0:01:45.9]} 32. c6 {[%clk 0:01:22.9]} 32... Nb8 {[%clk 0:01:46.7]}
33. f4 {[%clk 0:01:19.5]} 33... exf4+ {[%clk 0:01:41]} 34. gxf4 {[%clk
0:01:21.4]} 34... Rxc6 {[%clk 0:01:37.1]} 35. Rxc6 {[%clk 0:01:22.1]} 35... Rxc6
{[%clk 0:01:39]} 36. Rxc6 {[%clk 0:01:22.6]} 36... Nxc6 {[%clk 0:01:40.9]} 37.
Bc3 {[%clk 0:01:15]} 37... Kg6 {[%clk 0:01:35.4]} 38. Kf3 {[%clk 0:01:10.2]}
38... Kh5 {[%clk 0:01:34.9]} 39. Kg3 {[%clk 0:01:10.2]} 39... gxf4+ {[%clk
0:01:31.2]} 40. Kxf4 {[%clk 0:01:12.1]} 40... Kh4 {[%clk 0:01:32.9]} 41. Bg7
{[%clk 0:01:03.2]} 41... h5 {[%clk 0:01:33.6]} 42. Bf8 {[%clk 0:01:03.7]} 42...
d5 {[%clk 0:01:32.6]} 43. exd5 {[%clk 0:01:03.1]} 43... exd5 {[%clk 0:01:34.5]}
44. Bc5 {[%clk 0:00:34.1]} 44... Kxh3 {[%clk 0:01:28.6]} 45. Kg5 {[%clk
0:00:34.8]} 45... h4 {[%clk 0:01:30.1]} 46. Bf2 {[%clk 0:00:36.1]} 46... Ne5
{[%clk 0:01:27.6]} 47. Bxa7 {[%clk 0:00:30.9]} 47... Nf3+ {[%clk 0:01:28.4]} 48.
Kf4 {[%clk 0:00:31.6]} 48... Kg2 {[%clk 0:01:29.6]} 49. Ke3 {[%clk 0:00:26.6]}
49... h3 {[%clk 0:01:18.7]} 50. Bb8 {[%clk 0:00:27.1]} 50... Nh4 {[%clk
0:01:12.2]} 51. a4 {[%clk 0:00:23.8]} 51... Nf5+ {[%clk 0:01:12.6]} 52. Kd3
{[%clk 0:00:18.6]} 52... Ng3 {[%clk 0:01:13.8]} 53. a5 {[%clk 0:00:20.2]} 53...
h2 {[%clk 0:01:15.1]} 54. a6 {[%clk 0:00:21.5]} 54... h1=Q {[%clk 0:01:16.7]}
55. a7 {[%clk 0:00:23]} 55... Qa1 {[%clk 0:01:18]} 0-1

[Event "*** Titled Tuesday 3|2 Blitz"]
[Site "Chess.com"]
[Date "2016.03.01"]
[Round "1"]
[White "E-Shaposhnikov"]
[Black "jcgs1030"]
[Result "1-0"]
[WhiteElo "2488"]
[BlackElo "2221"]
[TimeControl "180+2"]
[EndTime "11:08:57 PST"]
[Termination "E-Shaposhnikov won by resignation"]

1. Nf3 {[%clk 0:02:52.1]} 1... Nf6 {[%clk 0:02:59.7]} 2. c4 {[%clk 0:02:52]}
2... c5 {[%clk 0:02:54.3]} 3. Nc3 {[%clk 0:02:51.5]} 3... g6 {[%clk 0:02:54.8]}
4. g3 {[%clk 0:02:51.1]} 4... Bg7 {[%clk 0:02:55.4]} 5. Bg2 {[%clk 0:02:52.2]}
5... O-O {[%clk 0:02:57]} 6. d4 {[%clk 0:02:48.6]} 6... cxd4 {[%clk 0:02:56.6]}
7. Nxd4 {[%clk 0:02:50.5]} 7... Nc6 {[%clk 0:02:58]} 8. O-O {[%clk 0:02:48.6]}
8... d6 {[%clk 0:02:58.9]} 9. Nxc6 {[%clk 0:02:49.1]} 9... bxc6 {[%clk
0:03:00.8]} 10. Bxc6 {[%clk 0:02:50.7]} 10... Rb8 {[%clk 0:03:02.3]} 11. Bg2
{[%clk 0:02:49.3]} 11... Qa5 {[%clk 0:03:03.5]} 12. Qd2 {[%clk 0:02:49.6]} 12...
Qb4 {[%clk 0:02:42.1]} 13. b3 {[%clk 0:02:34.6]} 13... Be6 {[%clk 0:02:29.4]}
14. Rb1 {[%clk 0:02:17.6]} 14... Rfd8 {[%clk 0:02:15.9]} 15. Rd1 {[%clk
0:02:01.7]} 15... Qc5 {[%clk 0:01:51]} 16. Bb2 {[%clk 0:01:59.8]} 16... Qh5
{[%clk 0:01:46.7]} 17. Nd5 {[%clk 0:01:57.3]} 17... Bxd5 {[%clk 0:01:44.5]} 18.
cxd5 {[%clk 0:01:53.8]} 18... Rbc8 {[%clk 0:01:37.1]} 19. h3 {[%clk 0:01:54.5]}
19... Rc5 {[%clk 0:01:33]} 20. Bd4 {[%clk 0:01:53.9]} 20... Rc7 {[%clk
0:01:16.5]} 21. Rbc1 {[%clk 0:01:47.9]} 21... Rdc8 {[%clk 0:01:17.1]} 22. Rxc7
{[%clk 0:01:48.3]} 22... Rxc7 {[%clk 0:01:19]} 23. g4 {[%clk 0:01:41.5]} 23...
Qh4 {[%clk 0:01:16.1]} 24. Rc1 {[%clk 0:01:40.8]} 24... Rxc1+ {[%clk 0:01:12]}
25. Qxc1 {[%clk 0:01:41.8]} 25... h5 {[%clk 0:01:13.9]} 26. Bxa7 {[%clk
0:01:21]} 26... hxg4 {[%clk 0:01:12]} 27. Be3 {[%clk 0:01:12.5]} 27... gxh3
{[%clk 0:01:08.5]} 28. Qc8+ {[%clk 0:01:13.2]} 28... Kh7 {[%clk 0:00:59.9]} 29.
Qxh3 {[%clk 0:01:12.3]} 29... Qxh3 {[%clk 0:01:00.3]} 30. Bxh3 {[%clk
0:01:13.5]} 30... Nxd5 {[%clk 0:01:02.2]} 31. Bd2 {[%clk 0:01:09.7]} 31... Bc3
{[%clk 0:01:03.2]} 32. Bxc3 {[%clk 0:00:59.6]} 32... Nxc3 {[%clk 0:01:02.9]} 33.
a4 {[%clk 0:01:00.9]} 33... Nxe2+ {[%clk 0:01:03.7]} 34. Kf1 {[%clk 0:01:02.2]}
34... Nd4 {[%clk 0:01:03.2]} 35. b4 {[%clk 0:00:53.6]} 35... e6 {[%clk 0:00:46]}
36. b5 {[%clk 0:00:39.2]} 36... Nb3 {[%clk 0:00:46.5]} 37. b6 {[%clk 0:00:34.8]}
37... Na5 {[%clk 0:00:47.4]} 38. Ke1 {[%clk 0:00:31.4]} 38... Kg7 {[%clk
0:00:48.5]} 39. Bf1 {[%clk 0:00:30.2]} 39... Kf6 {[%clk 0:00:43.2]} 40. Ba6
{[%clk 0:00:31.1]} 40... Ke7 {[%clk 0:00:43]} 41. b7 {[%clk 0:00:31.8]} 41...
Nc6 {[%clk 0:00:44.1]} 42. Bb5 {[%clk 0:00:31.7]} 42... Nb8 {[%clk 0:00:43.5]}
43. a5 {[%clk 0:00:32.7]} 43... Kd8 {[%clk 0:00:44.8]} 44. a6 {[%clk 0:00:31.8]}
44... Kc7 {[%clk 0:00:46.3]} 45. a7 {[%clk 0:00:31.4]} 45... Kxb7 {[%clk
0:00:48.2]} 46. axb8=Q+ {[%clk 0:00:32.3]} 46... Kxb8 {[%clk 0:00:50.1]} 47. Be8
{[%clk 0:00:33.5]} 47... f6 {[%clk 0:00:51.3]} 48. Bf7 {[%clk 0:00:31.6]} 48...
Kc7 {[%clk 0:00:40.9]} 49. Bxe6 {[%clk 0:00:28.1]} 49... Kc6 {[%clk 0:00:42.3]}
50. Kd2 {[%clk 0:00:28.1]} 50... d5 {[%clk 0:00:43.7]} 51. Kd3 {[%clk
0:00:25.8]} 51... Kd6 {[%clk 0:00:45.6]} 52. Bf7 {[%clk 0:00:26.5]} 52... Kc6
{[%clk 0:00:47.5]} 53. Kd4 {[%clk 0:00:27.4]} 53... Kd6 {[%clk 0:00:49.4]} 54.
Bxg6 {[%clk 0:00:28.3]} 54... Ke6 {[%clk 0:00:49.8]} 1-0